[Event "21st Open Gran Hotel Bali-B 2024"]
[Site "Benidorm"]
[Date "2024.11.30"]
[Round "3.10"]
[White "Santamaria Baeza, Adolfo"]
[Black "Bartakke Aditya"]
[Result "0-1"]
[ECO "B50"]
[WhiteElo "1863"]
[BlackElo "1957"]
[Annotator "NA RC"]
[PlyCount "82"]
[EventDate "2024.11.26"]
[EventType "swiss"]
[EventCountry "ESP"]
[SourceTitle "playchess.com"]
[Source "ChessBase"]
[SourceQuality "1"]
[TimeControl "5400+30"]

1. e4 {[%emt 0:00:30]} c5 {[%emt 0:05:36]} 2. Nf3 {[%emt 0:00:16]} d6 {[%emt 0:00:22]} 3. Bc4 {[%emt 0:02:21]} Nf6 {[%emt 0:04:29]} 4. Nc3 {[%emt 0:02:25]} Nc6 {[%emt 0:02:51]} 5. d3 {[%emt 0:01:21]} e6 {[%emt 0:00:26]} 6. Bg5 {[%emt 0:01:21]} Be7 {[%emt 0:01:05]} 7. O-O {[%emt 0:00:15]} a6 {[%emt 0:00:35]} 8. a3 {[%emt 0:01:49]} O-O {[%emt 0:01:17]} 9. Qd2 {[%emt 0:04:54]} b5 {[%emt 0:00:47]} 10. Bb3 {[%emt 0:00:55]} Bb7 {[%emt 0:01:53]} 11. Ne2 {[%emt 0:01:08]} Qc7 {[%emt 0:02:02]} 12. c3 {[%emt 0:00:47]} c4 {[%emt 0:01:31]} 13. Bc2 {[%emt 0:00:20]} cxd3 {[%emt 0:00:52]} 14. Bxd3 {[%emt 0:01:16]} Na5 {[%emt 0:01:08]} 15. Qc2 {[%emt 0:00:46]} e5 {[%emt 0:01:33]} 16. Bxf6 {[%emt 0:00:28]} Bxf6 {[%emt 0:00:27]} 17. Ng3 {[%emt 0:00:18]} g6 {[%emt 0:01:34]} 18. h4 {[%emt 0:00:30]} h5 {[%emt 0:01:37]} 19. Rad1 {[%emt 0:01:15]} Qe7 {[%emt 0:01:31]} 20. Be2 {[%emt 0:01:48]} Rfd8 {[%emt 0:03:10]} 21. a4 {[%emt 0:00:26]} Bc6 {[%emt 0:13:46]} 22. axb5 {[%emt 0:01:24]} axb5 {[%emt 0:00:16]} 23. Qd2 {[%emt 0:06:24]} Bxh4 {[%emt 0:06:27]} 24. Qh6 {[%emt 0:00:19]} Bf6 {[%emt 0:02:53]} 25. Qe3 {[%emt 0:03:47]} h4 {[%emt 0:01:05]} 26. Nh1 {[%emt 0:01:18]} Kg7 {[%emt 0:00:59]} 27. g4 {[%emt 0:00:28]} g5 {[%emt 0:15:53]} 28. Kh2 {[%emt 0:01:38]} Nc4 {[%emt 0:01:30]} 29. Bxc4 {[%emt 0:00:35]} bxc4 {[%emt 0:00:04]} 30. Nd2 {[%emt 0:01:02]} Qe6 {[%emt 0:02:36]} 31. f3 {[%emt 0:00:31]} Ra2 {[%emt 0:00:25]} 32. Qb6 {[%emt 0:00:19]} d5 {[%emt 0:07:25]} 33. Nxc4 {[%emt 0:00:15]} dxe4 {[%emt 0:08:28]} 34. Rxd8 {[%emt 0:00:27]} Qxc4 {[%emt 0:00:20]} 35. Rdd1 {[%emt 0:02:05]} exf3 {[%emt 0:00:44]} 36. Kh3 {[%emt 0:01:00]} Bd7 {[%emt 0:03:44]} 37. Rg1 {[%emt 0:01:53]} Be6 {[%emt 0:01:35]} 38. Rd2 {[%emt 0:02:29]} Qf4 {[%emt 0:01:09]} 39. Rf2 {[%emt 0:07:12]} e4 {[%emt 0:00:01]} 40. Qc6 {[%emt 0:00:42]} Be5 {[%emt 0:00:32]} 41. Qb7 {[%emt 0:03:04]} Ra1 {[%emt 0:00:28]} 0-1

[Event "21st Open Gran Hotel Bali-B 2024"]
[Site "Benidorm"]
[Date "2024.11.30"]
[Round "3.11"]
[White "Picazo Gonzalez, Alejandro"]
[Black "Rionda Medio, Angel Arturo"]
[Result "1-0"]
[ECO "C45"]
[WhiteElo "1956"]
[BlackElo "1904"]
[Annotator "NA"]
[PlyCount "51"]
[EventDate "2024.11.26"]
[EventType "swiss"]
[EventCountry "ESP"]
[SourceTitle "playchess.com"]
[Source "ChessBase"]
[SourceQuality "1"]
[TimeControl "5400+30"]

1. e4 {[%emt 0:05:50]} e5 {[%emt 0:01:02]} 2. Nf3 {[%emt 0:00:16]} Nc6 {[%emt 0:00:14]} 3. d4 {[%emt 0:00:19]} exd4 {[%emt 0:02:54]} 4. Nxd4 {[%emt 0:00:13]} Bc5 {[%emt 0:04:06]} 5. Be3 {[%emt 0:00:39]} Qf6 {[%emt 0:01:21]} 6. c3 {[%emt 0:01:07]} Nge7 {[%emt 0:05:56]} 7. Bc4 {[%emt 0:01:30]} Nxd4 {[%emt 0:01:14]} 8. cxd4 {[%emt 0:10:04]} Bb4+ {[%emt 0:00:24]} 9. Nc3 {[%emt 0:00:37]} O-O {[%emt 0:02:23]} 10. O-O {[%emt 0:03:25]} d6 {[%emt 0:17:55]} 11. f4 {[%emt 0:07:43]} Bxc3 {[%emt 0:01:47]} 12. bxc3 {[%emt 0:00:06]} Nc6 {[%emt 0:01:54]} 13. Bd3 {[%emt 0:03:39]} Qe7 {[%emt 0:06:46]} 14. f5 {[%emt 0:05:15]} f6 {[%emt 0:00:47]} 15. Rf3 {[%emt 0:01:04]} Bd7 {[%emt 0:07:45]} 16. Rg3 {[%emt 0:03:06]} Kh8 {[%emt 0:00:31]} 17. Qh5 {[%emt 0:01:55]} Be8 {[%emt 0:02:25]} 18. Qh4 {[%emt 0:00:20]} Rg8 {[%emt 0:08:40]} 19. Bc4 {[%emt 0:08:51]} g5 {[%emt 0:00:14]} 20. fxg6 {[%emt 0:04:11]} Rxg6 {[%emt 0:00:27]} 21. Rf1 {[%emt 0:04:14]} Rxg3 {[%emt 0:00:41]} 22. hxg3 {[%emt 0:03:45]} Bg6 {[%emt 0:00:16]} 23. Rxf6 {[%emt 0:03:13]} Qxe4 {[%emt 0:04:36]} 24. Qh6 {[%emt 0:00:28]} Qe8 {[%emt 0:03:12]} 25. Bg5 {[%emt 0:01:10]} d5 {[%emt 0:11:31]} 26. Rxg6 {[%emt 0:01:56]} 1-0

[Event "21st Open Gran Hotel Bali-B 2024"]
[Site "Benidorm"]
[Date "2024.11.30"]
[Round "3.12"]
[White "Van Haaften, Maarten"]
[Black "Anguas Fanlo, Sergio"]
[Result "0-1"]
[ECO "B06"]
[WhiteElo "1954"]
[BlackElo "1897"]
[Annotator "NA RC"]
[PlyCount "64"]
[EventDate "2024.11.26"]
[EventType "swiss"]
[EventCountry "ESP"]
[SourceTitle "playchess.com"]
[Source "ChessBase"]
[SourceQuality "1"]
[TimeControl "5400+30"]

1. e4 {[%emt 0:00:03]} g6 {[%emt 0:00:34]} 2. d4 {[%emt 0:00:32]} Bg7 {[%emt 0:00:11]} 3. Nf3 {[%emt 0:00:25]} d6 {[%emt 0:00:10]} 4. Be3 {[%emt 0:01:02]} a6 {[%emt 0:01:15]} 5. Be2 {[%emt 0:02:21]} b5 {[%emt 0:01:08]} 6. c3 {[%emt 0:01:27]} Bb7 {[%emt 0:00:50]} 7. Qc2 {[%emt 0:02:52]} Nd7 {[%emt 0:01:03]} 8. O-O {[%emt 0:02:10]} Rc8 {[%emt 0:00:37]} 9. a4 {[%emt 0:03:26]} c6 {[%emt 0:06:55]} 10. Nbd2 {[%emt 0:04:16]} Ngf6 {[%emt 0:02:42]} 11. e5 {[%emt 0:06:43]} Nd5 {[%emt 0:20:56]} 12. e6 {[%emt 0:03:43]} fxe6 {[%emt 0:01:33]} 13. Ng5 {[%emt 0:01:17]} Nf8 {[%emt 0:00:41]} 14. Bg4 {[%emt 0:01:33]} Qd7 {[%emt 0:20:37]} 15. Qe4 {[%emt 0:07:35]} Nf6 {[%emt 0:07:02]} 16. Qf4 {[%emt 0:09:44]} h6 {[%emt 0:04:39]} 17. Ngf3 {[%emt 0:04:51]} g5 {[%emt 0:03:29]} 18. Qg3 {[%emt 0:02:47]} h5 {[%emt 0:01:26]} 19. Bxh5+ {[%emt 0:00:53]} Nxh5 {[%emt 0:02:06]} 20. Qxg5 {[%emt 0:00:18]} Bf6 {[%emt 0:00:40]} 21. Qg4 {[%emt 0:00:58]} e5 {[%emt 0:01:08]} 22. Qe4 {[%emt 0:00:46]} Rg8 {[%emt 0:01:34]} 23. dxe5 {[%emt 0:01:19]} c5 {[%emt 0:01:35]} 24. e6 {[%emt 0:03:31]} Nxe6 {[%emt 0:05:02]} 25. Qh7 {[%emt 0:00:53]} Rh8 {[%emt 0:00:43]} 26. Qg6+ {[%emt 0:00:06]} Kd8 {[%emt 0:00:26]} 27. axb5 {[%emt 0:01:40]} axb5 {[%emt 0:00:43]} 28. Ra7 {[%emt 0:00:42]} Qc6 {[%emt 0:07:43]} 29. Nb3 {[%emt 0:01:37]} Qb6 {[%emt 0:01:05]} 30. Rfa1 {[%emt 0:00:17]} Kc7 {[%emt 0:04:05]} 31. Qe4 {[%emt 0:02:10]} Nhg7 {[%emt 0:00:40]} 32. R1a6 {[%emt 0:03:39]} Qxa6 {[%emt 0:00:20]} 0-1